fUSD/lending_fUSD_20240620
["ID","MTS","AMOUNT","RATE_DAILY","PERIOD"]
[329971370,1718883047761,-1154.23814551,0.00014,2]
[329971372,1718883110645,-414.79,0.00011303,2]
[329971373,1718883271661,13753.00780648,6.94e-05,2]
[329971375,1718883737852,442.03,0.00010372,2]
[329971398,1718884210966,150.0,0.00013999,7]
[329971399,1718884211968,150.0,0.00013999,7]
[329971416,1718884232287,-150.0,0.00011799,2]
[329971417,1718884232299,-300.0,0.00011799,2]
[329971418,1718884232309,-1559.39774727,0.000118,2]
[329971419,1718884232325,-10756.16359473,0.000118,2]
[329971420,1718884232335,-250.0,0.00012011,2]
[329971421,1718884232344,-1012.52743573,0.00012109,2]
[329971422,1718884232354,-5941.94684836,0.0001211,2]
[329971423,1718884232388,-299.99,0.0001211,2]
[329971424,1718884232399,-2159.97449723,0.0001211,2]
[329971425,1718884232437,-15498.08865441,0.0001211,2]
[329971426,1718884232447,-283.98,0.00012127,2]
[329971427,1718884232456,-659.16,0.00012167,2]
[329971428,1718884232466,-250.0,0.00012177,2]
[329971429,1718884232477,-250.0,0.00012193,2]
[329971430,1718884232486,-7592.43,0.00012241,2]
[329971431,1718884232495,-2852.3,0.00012285,2]
[329971432,1718884232504,-4752.38,0.00012399,2]
[329971434,1718884232512,-775.8,0.00012399,2]
[329971436,1718884232522,-3030.7,0.00012399,2]
[329971437,1718884232531,-1406.12,0.00012445,2]
[329971438,1718884232540,-321.67,0.00012445,2]
[329971439,1718884232549,-1222.0,0.00012621,2]
[329971440,1718884232559,-442.03,0.00012636,2]
[329971441,1718884232568,-299.99,0.00012645,2]
[329971442,1718884232578,-170.23,0.00012672,2]
[329971443,1718884232587,-170.23,0.00012704,2]
[329971444,1718884232597,-5075.11,0.00012736,2]
[329971446,1718884232607,-170.23,0.00012736,2]
[329971447,1718884232617,-354.05,0.00012825,2]
[329971448,1718884232627,-168.7,0.00012905,2]
[329971449,1718884232636,-420.0,0.00012955,2]
[329971450,1718884232646,-210.0,0.00012979,2]
[329971451,1718884232655,-1000.0,0.0001299,2]
[329971452,1718884232664,-500.0,0.00013,2]
[329971453,1718884232674,-500.0,0.00013,2]
[329971454,1718884232683,-500.0,0.00013,2]
[329971455,1718884232694,-500.0,0.00013,2]
[329971456,1718884232703,-500.0,0.00013,2]
[329971457,1718884232713,-500.0,0.00013,2]
[329971458,1718884232725,-500.0,0.00013,2]
[329971459,1718884232735,-500.0,0.00013,2]
[329971460,1718884232744,-500.0,0.00013,2]
[329971461,1718884232754,-500.0,0.00013,2]
[329971462,1718884232764,-500.0,0.00013,2]
[329971463,1718884232774,-500.0,0.00013,2]
[329971464,1718884232785,-458.65,0.00013,2]
[329971465,1718884232794,-500.0,0.00013,2]
[329971466,1718884232804,-500.0,0.00013,2]
[329971467,1718884232814,-500.0,0.00013,2]
[329971468,1718884232823,-500.0,0.00013,2]
[329971469,1718884232834,-500.0,0.00013,2]
[329971470,1718884232843,-500.0,0.00013,2]
[329971471,1718884232852,-500.0,0.00013,2]
[329971472,1718884232862,-230.39,0.00013,2]
[329971473,1718884232872,-500.0,0.00013,2]
[329971474,1718884232881,-500.0,0.00013,2]
[329971475,1718884232891,-500.0,0.00013,2]
[329971476,1718884232901,-452.78,0.00013096,2]
[329971477,1718884232910,-835.54,0.00013341,2]
[329971478,1718884232921,-2772.54,0.00013425,2]
[329971479,1718884232930,-2500.0,0.000135,2]
[329971480,1718884232941,-316.80970903,0.00013561,2]
[329971481,1718884232951,-175.68111061,0.0001358,2]
[329971482,1718884232960,-10000.0,0.00013598,2]
[329971483,1718884232971,-25513.02512673,0.000136,2]
[329971484,1718884232984,-6343.80646121,0.000136,2]
[329971485,1718884232996,-364.7,0.000136,2]
[329971486,1718884233008,-752.64406774,0.000136,2]
[329971487,1718884233021,-600.0,0.000136,2]
[329971488,1718884233369,-1000.0,0.000136,2]
[329971489,1718884233381,-697.11121979,0.000136,2]
[329971490,1718884233394,-113717.33452339,0.000136,2]
[329971499,1718884238598,-835.77,0.000136,2]
[329971500,1718884238610,-28595.34813619,0.000136,2]
[329971501,1718884238622,-30661.59706,0.000136,2]
[329971502,1718884238633,-33017.57440624,0.000136,2]
[329971503,1718884238645,-40188.70718728,0.000136,2]
[329971504,1718884238656,-566.34980186,0.000136,2]
[329971505,1718884238705,-163738.5182256,0.000136,2]
[329971506,1718884238714,-466.57,0.0001368,2]
[329971507,1718884238725,-316.80970895,0.00013683,2]
[329971508,1718884238734,-466.57,0.00013688,2]
[329971509,1718884238744,-466.57,0.00013688,2]
[329971510,1718884238754,-466.57,0.00013688,2]
[329971511,1718884238764,-466.57,0.00013688,2]
[329971512,1718884238773,-466.57,0.00013688,2]
[329971513,1718884238783,-169.96635,0.00013688,2]
[329971514,1718884238792,-500.0,0.00013698,2]
[329971515,1718884238802,-500.0,0.00013698,2]
[329971516,1718884238811,-500.0,0.00013698,2]
[329971517,1718884238820,-500.0,0.00013698,2]
[329971518,1718884238830,-500.0,0.00013698,2]
[329971519,1718884238839,-329.09122593,0.00013698,2]
[329971520,1718884238848,-500.0,0.00013698,2]
[329971521,1718884238858,-500.0,0.00013698,2]
[329971522,1718884238867,-500.0,0.00013698,2]
[329971523,1718884238876,-500.0,0.00013698,2]
[329971524,1718884238886,-508.75,0.00013698,2]
[329971525,1718884238896,-500.0,0.00013698,2]
[329971526,1718884238905,-500.0,0.00013698,2]
[329971527,1718884238915,-500.0,0.00013698,2]
[329971528,1718884238925,-500.0,0.00013698,2]
[329971529,1718884238934,-500.0,0.00013698,2]
[329971530,1718884238944,-500.0,0.00013698,2]
[329971531,1718884238954,-500.0,0.00013698,2]
[329971532,1718884238964,-500.0,0.00013698,2]
[329971533,1718884238975,-500.0,0.00013698,2]
[329971534,1718884238985,-500.0,0.00013698,2]
[329971535,1718884238994,-500.0,0.00013698,2]
[329971536,1718884239004,-500.0,0.00013698,2]
[329971537,1718884239014,-500.0,0.00013698,2]
[329971538,1718884239024,-500.0,0.00013698,2]
[329971539,1718884239035,-647.17,0.00013698,2]
[329971540,1718884239045,-853.98,0.00013698,2]
[329971541,1718884239055,-500.0,0.00013698,2]
[329971542,1718884239064,-500.0,0.00013698,2]
[329971543,1718884239074,-500.0,0.00013698,2]
[329971544,1718884239084,-500.0,0.00013698,2]
[329971545,1718884239095,-500.0,0.00013698,2]
[329971546,1718884239105,-500.0,0.00013698,2]
[329971547,1718884239115,-500.0,0.00013698,2]
[329971548,1718884239124,-500.0,0.00013698,2]
[329971549,1718884239134,-500.0,0.00013698,2]
[329971550,1718884239144,-1506.82,0.00013698,2]
[329971551,1718884239155,-500.0,0.00013698,2]
[329971552,1718884239165,-367.58786685,0.00013698,2]
[329971553,1718884239175,-500.0,0.00013698,2]
[329971554,1718884239185,-500.0,0.00013698,2]
[329971555,1718884239195,-500.0,0.00013698,2]
[329971556,1718884239205,-500.0,0.00013698,2]
[329971557,1718884239216,-608.7359777,0.00013698,2]
[329971558,1718884239230,-500.0,0.00013698,2]
[329971559,1718884239240,-500.0,0.00013698,2]
[329971560,1718884239250,-500.0,0.00013698,2]
[329971561,1718884239261,-500.0,0.00013698,2]
[329971562,1718884239272,-500.0,0.00013698,2]
[329971563,1718884239282,-201.84818744,0.00013698,2]
[329971564,1718884239292,-500.0,0.00013698,2]
[329971565,1718884239304,-500.0,0.00013698,2]
[329971566,1718884239314,-501.71,0.00013698,2]
[329971567,1718884239325,-500.0,0.00013698,2]
[329971568,1718884239335,-679.39,0.00013698,2]
[329971569,1718884239345,-500.0,0.00013698,2]
[329971570,1718884239355,-500.0,0.00013698,2]
[329971571,1718884239366,-500.0,0.00013698,2]
[329971572,1718884239376,-500.0,0.00013698,2]
[329971573,1718884239387,-500.0,0.00013698,2]
[329971574,1718884239396,-500.0,0.00013698,2]
[329971575,1718884239407,-500.0,0.00013698,2]
[329971576,1718884239416,-500.0,0.00013698,2]
[329971577,1718884239426,-500.0,0.00013698,2]
[329971578,1718884239437,-500.0,0.00013698,2]
[329971579,1718884239448,-500.0,0.00013698,2]
[329971580,1718884239459,-500.0,0.00013698,2]
[329971581,1718884239469,-500.0,0.00013698,2]
[329971582,1718884239484,-500.0,0.00013698,2]
[329971583,1718884239495,-448.73863969,0.00013698,2]
[329971584,1718884239505,-500.0,0.00013698,2]
[329971585,1718884239516,-500.0,0.00013698,2]
[329971586,1718884239526,-500.0,0.00013698,2]
[329971587,1718884239536,-530.93,0.00013698,2]
[329971588,1718884239546,-500.0,0.00013698,2]
[329971589,1718884239556,-500.0,0.00013698,2]
[329971590,1718884239566,-500.0,0.00013698,2]
[329971591,1718884239576,-500.0,0.00013698,2]
[329971592,1718884239586,-500.0,0.00013698,2]
[329971593,1718884239596,-500.0,0.00013698,2]
[329971594,1718884239606,-500.0,0.00013698,2]
[329971595,1718884239616,-500.0,0.00013698,2]
[329971596,1718884239627,-500.0,0.00013698,2]
[329971597,1718884239637,-500.0,0.00013698,2]
[329971598,1718884239647,-500.0,0.00013698,2]
[329971599,1718884239657,-500.0,0.00013698,2]
[329971600,1718884239667,-500.0,0.00013698,2]
[329971601,1718884239678,-500.0,0.00013698,2]
[329971602,1718884239687,-341.90685093,0.00013698,2]
[329971603,1718884239697,-5683.85,0.00013698,2]
[329971604,1718884239707,-500.0,0.00013698,2]
[329971605,1718884239716,-500.0,0.00013698,2]
[329971606,1718884239730,-500.0,0.00013698,2]
[329971607,1718884239739,-150.0,0.00013698,2]
[329971608,1718884239749,-500.0,0.00013698,2]
[329971609,1718884239759,-364.87756042,0.00013698,2]
[329971610,1718884239768,-500.0,0.00013698,2]
[329971611,1718884239778,-500.0,0.00013698,2]
[329971612,1718884239788,-500.0,0.00013698,2]
[329971613,1718884239797,-500.0,0.00013698,2]
[329971614,1718884239807,-508.1,0.00013698,2]
[329971615,1718884239816,-500.0,0.00013698,2]
[329971616,1718884239826,-500.0,0.00013698,2]
[329971617,1718884239836,-500.0,0.00013698,2]
[329971618,1718884239846,-500.0,0.00013698,2]
[329971619,1718884239855,-500.0,0.00013698,2]
[329971620,1718884239866,-500.0,0.00013698,2]
[329971621,1718884239876,-622.51,0.00013698,2]
[329971622,1718884239886,-548.48,0.00013698,2]
[329971623,1718884239896,-506.75,0.00013698,2]
[329971624,1718884239907,-500.0,0.00013698,2]
[329971625,1718884239916,-500.0,0.00013698,2]
[329971626,1718884239926,-500.0,0.00013698,2]
[329971628,1718884239935,-500.0,0.00013698,2]
[329971629,1718884239944,-500.0,0.00013698,2]
[329971630,1718884239954,-500.0,0.00013698,2]
[329971631,1718884239963,-500.0,0.00013698,2]
[329971632,1718884239973,-500.0,0.00013698,2]
[329971633,1718884239984,-500.0,0.00013698,2]
[329971634,1718884239993,-500.0,0.00013698,2]
[329971635,1718884240003,-500.0,0.00013698,2]
[329971636,1718884240012,-500.0,0.00013698,2]
[329971637,1718884240022,-500.0,0.00013698,2]
[329971638,1718884240031,-500.0,0.00013698,2]
[329971639,1718884240042,-500.0,0.00013698,2]
[329971640,1718884240051,-500.0,0.00013698,2]
[329971641,1718884240061,-500.0,0.00013698,2]
[329971642,1718884240071,-500.0,0.00013698,2]
[329971644,1718884240081,-380.72311488,0.00013698,2]
[329971645,1718884240090,-500.0,0.00013698,2]
[329971646,1718884240100,-500.0,0.00013698,2]
[329971647,1718884240110,-741.03,0.00013698,2]
[329971648,1718884240119,-500.0,0.00013698,2]
[329971649,1718884240129,-551.92,0.00013698,2]
[329971650,1718884240138,-500.0,0.00013698,2]
[329971651,1718884240147,-500.0,0.00013698,2]
[329971652,1718884240157,-500.0,0.00013698,2]
[329971653,1718884240166,-500.0,0.00013698,2]
[329971654,1718884240176,-500.0,0.00013698,2]
[329971655,1718884240186,-500.0,0.00013698,2]
[329971656,1718884240195,-500.0,0.00013698,2]
[329971657,1718884240206,-510.65,0.00013698,2]
[329971658,1718884240218,-500.0,0.00013698,2]
[329971659,1718884240230,-609.62,0.00013698,2]
[329971660,1718884240239,-500.0,0.00013698,2]
[329971661,1718884240251,-500.0,0.00013698,2]
[329971662,1718884240260,-500.0,0.00013698,2]
[329971663,1718884240271,-500.0,0.00013698,2]
[329971664,1718884240281,-500.0,0.00013698,2]
[329971665,1718884240292,-500.0,0.00013698,2]
[329971666,1718884240303,-500.0,0.00013698,2]
[329971667,1718884240312,-500.0,0.00013698,2]
[329971668,1718884240322,-500.0,0.00013698,2]
[329971669,1718884240331,-690.55,0.00013698,2]
[329971670,1718884240340,-500.0,0.00013698,2]
[329971671,1718884240350,-500.0,0.00013698,2]
[329971672,1718884240360,-500.0,0.00013698,2]
[329971673,1718884240369,-500.0,0.00013698,2]
[329971674,1718884240379,-612.84,0.00013698,2]
[329971675,1718884240388,-500.0,0.00013698,2]
[329971676,1718884240397,-500.0,0.00013698,2]
[329971677,1718884240407,-469.26514675,0.00013698,2]
[329971678,1718884240416,-500.0,0.00013698,2]
[329971679,1718884240425,-488.81166058,0.00013698,2]
[329971680,1718884240442,-11.18833942,0.00013698,2]
[329971681,1718884240451,-500.0,0.00013698,2]
[329971682,1718884240461,-500.0,0.00013698,2]
[329971683,1718884240470,-500.0,0.00013698,2]
[329971684,1718884240481,-500.0,0.00013698,2]
[329971685,1718884240490,-1443.69,0.00013698,2]
[329971686,1718884240499,-500.0,0.00013698,2]
[329971687,1718884240508,-500.0,0.00013698,2]
[329971688,1718884240517,-545.22,0.00013698,2]
[329971689,1718884240527,-500.0,0.00013698,2]
[329971690,1718884240536,-525.7,0.00013698,2]
[329971691,1718884240546,-500.0,0.00013698,2]
[329971692,1718884240555,-955.11,0.00013698,2]
[329971693,1718884240564,-520.41,0.00013698,2]
[329971694,1718884240573,-1388.77,0.00013698,2]
[329971695,1718884240583,-2808.69,0.00013698,2]
[329971696,1718884240592,-654.38,0.00013698,2]
[329971697,1718884240602,-500.0,0.00013698,2]
[329971698,1718884240611,-500.0,0.00013698,2]
[329971699,1718884240620,-500.0,0.00013698,2]
[329971700,1718884240630,-836.81,0.00013698,2]
[329971701,1718884240639,-610.1,0.00013698,2]
[329971702,1718884240649,-500.0,0.00013698,2]
[329971704,1718884240659,-3245.15,0.00013698,2]
[329971705,1718884240668,-500.0,0.00013698,2]
[329971706,1718884240678,-500.0,0.00013698,2]
[329971707,1718884240687,-500.0,0.00013698,2]
[329971708,1718884240697,-500.0,0.00013698,2]
[329971709,1718884240708,-541.63,0.00013698,2]
[329971710,1718884240717,-2230.04,0.00013698,2]
[329971711,1718884240729,-500.0,0.00013698,2]
[329971712,1718884240738,-1990.98,0.00013698,2]
[329971713,1718884240748,-572.52,0.00013698,2]
[329971714,1718884240758,-500.0,0.00013698,2]
[329971715,1718884240768,-5139.74,0.00013698,2]
[329971716,1718884240778,-500.0,0.00013698,2]
[329971718,1718884240787,-5599.03,0.00013698,2]
[329971720,1718884240797,-500.0,0.00013698,2]
[329971722,1718884240806,-642.84,0.00013698,2]
[329971723,1718884240815,-5457.14002112,0.00013698,2]
[329971726,1718884240829,-736.61997888,0.00013698,2]
[329971728,1718884240838,-500.0,0.00013698,2]
[329971730,1718884240847,-500.0,0.00013698,2]
[329971732,1718884240856,-500.0,0.00013698,2]
[329971734,1718884240866,-1100.54102112,0.00013698,2]
[329971735,1718884240884,-1199.59897888,0.00013698,2]
[329971736,1718884240895,-500.0,0.00013698,2]
[329971737,1718884240905,-500.0,0.00013698,2]
[329971738,1718884240914,-500.0,0.00013698,2]
[329971739,1718884240923,-500.0,0.00013698,2]
[329971740,1718884240933,-500.0,0.00013698,2]
[329971741,1718884240943,-1204.96,0.00013698,2]
[329971742,1718884240952,-538.69,0.00013698,2]
[329971743,1718884240962,-300.51751062,0.00013698,2]
[329971744,1718884240972,-18852.56,0.00013698,2]
[329971745,1718884240984,-13783.04,0.00013698,2]
[329971746,1718884240994,-500.0,0.00013698,2]
[329971747,1718884241004,-500.0,0.00013698,2]
[329971748,1718884241013,-1390.06,0.00013698,2]
[329971749,1718884241023,-1495.01,0.00013698,2]
[329971750,1718884241033,-1169.56,0.00013698,2]
[329971751,1718884241044,-5022.93,0.00013698,2]
[329971752,1718884241054,-752.43,0.00013698,2]
[329971753,1718884241064,-725.08,0.00013698,2]
[329971754,1718884241074,-500.0,0.00013698,2]
[329971755,1718884241084,-5382.54,0.00013698,2]
[329971756,1718884241093,-500.0,0.00013698,2]
[329971757,1718884241103,-879.55,0.00013698,2]
[329971758,1718884241112,-500.0,0.00013698,2]
[329971759,1718884241121,-500.0,0.00013698,2]
[329971760,1718884241131,-645.93,0.00013698,2]
[329971761,1718884241141,-500.0,0.00013698,2]
[329971762,1718884241151,-500.0,0.00013698,2]
[329971763,1718884241161,-500.0,0.00013698,2]
[329971764,1718884241170,-500.0,0.00013698,2]
[329971765,1718884241180,-1072.32,0.00013698,2]
[329971766,1718884241189,-4696.12,0.00013698,2]
[329971767,1718884241199,-500.0,0.00013698,2]
[329971768,1718884241209,-787.38,0.00013698,2]
[329971769,1718884241221,-1074.17,0.00013698,2]
[329971770,1718884241235,-500.0,0.00013698,2]
[329971771,1718884241244,-500.0,0.00013698,2]
[329971772,1718884241254,-500.0,0.00013698,2]
[329971773,1718884241264,-500.0,0.00013698,2]
[329971774,1718884241273,-1169.32,0.00013698,2]
[329971775,1718884241282,-561.64,0.00013698,2]
[329971776,1718884241291,-500.0,0.00013698,2]
[329971777,1718884241306,-512.66,0.00013698,2]
[329971778,1718884241316,-500.0,0.00013698,2]
[329971779,1718884241325,-500.0,0.00013698,2]
[329971780,1718884241335,-2614.46,0.00013698,2]
[329971781,1718884241345,-2219.66,0.00013698,2]
[329971782,1718884241355,-500.0,0.00013698,2]
[329971783,1718884241364,-500.0,0.00013698,2]
[329971784,1718884241375,-500.0,0.00013698,2]
[329971785,1718884241384,-500.0,0.00013698,2]
[329971786,1718884241394,-500.0,0.00013698,2]
[329971787,1718884241403,-584.45,0.00013698,2]
[329971788,1718884241414,-1024.51,0.00013698,2]
[329971789,1718884241424,-1199.6,0.00013698,2]
[329971790,1718884241433,-500.0,0.00013698,2]
[329971791,1718884241442,-1833.01,0.00013698,2]
[329971792,1718884241452,-2312.36,0.00013698,2]
[329971793,1718884241461,-1108.78,0.00013698,2]
[329971794,1718884241470,-1857.9,0.00013698,2]
[329971795,1718884241481,-500.0,0.00013698,2]
[329971796,1718884241490,-805.84,0.00013698,2]
[329971797,1718884241499,-2040.5,0.00013698,2]
[329971798,1718884241508,-500.0,0.00013698,2]
[329971799,1718884241517,-920.41,0.00013698,2]
[329971800,1718884241527,-973.29,0.00013698,2]
[329971801,1718884241536,-500.0,0.00013698,2]
[329971802,1718884241545,-500.0,0.00013698,2]
[329971803,1718884241554,-500.0,0.00013698,2]
[329971804,1718884241563,-2163.24,0.00013698,2]
[329971805,1718884241572,-600.88,0.00013698,2]
[329971806,1718884241582,-500.0,0.00013698,2]
[329971807,1718884241591,-500.0,0.00013698,2]
[329971808,1718884241600,-2953.88,0.00013698,2]
[329971809,1718884241609,-500.0,0.00013698,2]
[329971810,1718884241619,-500.0,0.00013698,2]
[329971811,1718884241629,-3837.27,0.00013698,2]
[329971812,1718884241638,-500.0,0.00013698,2]
[329971813,1718884241648,-3028.91,0.00013698,2]
[329971814,1718884241657,-8203.61,0.00013698,2]
[329971815,1718884241668,-6159.89,0.00013698,2]
[329971816,1718884241678,-1988.06,0.00013698,2]
[329971817,1718884241687,-500.0,0.00013698,2]
[329971818,1718884241697,-256.806532,0.00013698,2]
[329971819,1718884241706,-734.02427846,0.00013698,2]
[329971820,1718884241730,-824.26572154,0.00013698,2]
[329971821,1718884241739,-1986.24,0.00013698,2]
[329971822,1718884241748,-500.0,0.00013698,2]
[329971823,1718884241756,-500.0,0.00013698,2]
[329971824,1718884241765,-1264.63,0.00013698,2]
[329971825,1718884241777,-2943.79,0.00013698,2]
[329971826,1718884241787,-899.85,0.00013698,2]
[329971827,1718884241796,-500.0,0.00013698,2]
[329971828,1718884241805,-500.0,0.00013698,2]
[329971829,1718884241815,-500.0,0.00013698,2]
[329971830,1718884241824,-5404.18,0.00013698,2]
[329971831,1718884241834,-581.71,0.00013698,2]
[329971832,1718884241844,-500.0,0.00013698,2]
[329971833,1718884241854,-500.0,0.00013698,2]
[329971834,1718884241863,-1651.12,0.00013698,2]
[329971835,1718884241872,-995.9,0.00013698,2]
[329971836,1718884241882,-461.8469323,0.00013698,2]
[329971837,1718884242307,-38.1530677,0.00013698,2]
[329971838,1718884242316,-487.58301451,0.00013698,2]
[329971839,1718884242336,-282.99193758,0.00013698,2]
[329971840,1718884242382,-3287.75504791,0.00013698,2]
[329971841,1718884242393,-500.0,0.00013698,2]
[329971842,1718884242404,-2797.84,0.00013698,2]
[329971843,1718884242416,-732.59,0.00013698,2]
[329971844,1718884242429,-500.1,0.00013698,2]
[329971845,1718884242441,-1184.38,0.00013698,2]
[329971846,1718884242453,-500.0,0.00013698,2]
[329971847,1718884242464,-2277.71,0.00013698,2]
[329971848,1718884242479,-500.0,0.00013698,2]
[329971849,1718884242489,-1884.65,0.00013698,2]
[329971850,1718884242499,-500.0,0.00013698,2]
[329971851,1718884242509,-500.0,0.00013698,2]
[329971852,1718884242518,-500.0,0.00013698,2]
[329971853,1718884242528,-2250.34,0.00013698,2]
[329971854,1718884242537,-1402.74,0.00013698,2]
[329971855,1718884242549,-1289.05,0.00013698,2]
[329971856,1718884242560,-1324.95,0.00013698,2]
[329971857,1718884242571,-500.0,0.00013698,2]
[329971858,1718884242582,-1673.27,0.00013698,2]
[329971859,1718884242593,-2478.1,0.00013698,2]
[329971860,1718884242605,-589.66727957,0.00013698,2]
[329971861,1718884242615,-634.93059611,0.00013698,2]
[329971862,1718884242625,-186.08668328,0.00013698,2]
[329971863,1718884242635,-500.0,0.00013698,2]
[329971864,1718884242646,-500.0,0.00013698,2]
[329971865,1718884242657,-500.0,0.00013698,2]
[329971866,1718884242668,-500.0,0.00013698,2]
[329971867,1718884242678,-1469.69,0.00013698,2]
[329971868,1718884242689,-2422.52,0.00013698,2]
[329971869,1718884242699,-500.0,0.00013698,2]
[329971870,1718884242710,-500.0,0.00013698,2]
[329971871,1718884242720,-1982.01,0.00013698,2]
[329971872,1718884242732,-500.0,0.00013698,2]
[329971873,1718884242742,-1164.8,0.00013698,2]
[329971874,1718884242752,-1017.83,0.00013698,2]
[329971875,1718884242763,-3393.92,0.00013698,2]
[329971876,1718884242774,-1523.41,0.00013698,2]
[329971878,1718884242784,-500.0,0.00013698,2]
[329971879,1718884242798,-508.7,0.00013698,2]
[329971881,1718884242808,-1019.91,0.00013698,2]
[329971883,1718884242819,-2196.93,0.00013698,2]
[329971884,1718884242829,-2058.46,0.00013698,2]
[329971885,1718884242839,-2949.98,0.00013698,2]
[329971886,1718884242850,-688.43,0.00013698,2]
[329971887,1718884242860,-500.0,0.00013698,2]
[329971888,1718884242871,-526.83,0.00013698,2]
[329971889,1718884242881,-1485.4,0.00013698,2]
[329971890,1718884242891,-500.0,0.00013698,2]
[329971891,1718884242903,-500.0,0.00013698,2]
[329971892,1718884242915,-212.26797983,0.00013698,2]
[329971893,1718884242925,-1437.92,0.00013698,2]
[329971894,1718884242935,-1015.22,0.00013698,2]
[329971895,1718884242946,-618.87,0.00013698,2]
[329971896,1718884242956,-879.71,0.00013698,2]
[329971897,1718884242966,-575.65,0.00013698,2]
[329971898,1718884242979,-500.0,0.00013698,2]
[329971899,1718884242989,-329.52,0.00013699,2]
[329971900,1718884243000,-575.43,0.00013699,2]
[329971902,1718884243010,-174.57,0.00013699,2]
[329971904,1718884243021,-1308.5,0.00013699,2]
[329971906,1718884243033,-150.0,0.00013714,2]
[329971908,1718884243044,-150.0,0.00013715,2]
[329971910,1718884243056,-150.0,0.00013716,2]
[329971912,1718884243066,-150.0,0.00013716,2]
[329971913,1718884243076,-150.0,0.00013719,2]
[329971914,1718884243087,-150.0,0.0001372,2]
[329971915,1718884243097,-1500.0,0.00013725,2]
[329971916,1718884243107,-309.05474805,0.00013727,2]
[329971917,1718884243118,-150.0,0.00013728,2]
[329971918,1718884243128,-150.0,0.00013729,2]
[329971919,1718884243139,-150.0,0.00013731,2]
[329971920,1718884243150,-150.0,0.00013734,2]
[329971921,1718884243161,-150.0,0.00013734,2]
[329971922,1718884243171,-150.0,0.00013736,2]
[329971923,1718884243182,-175.68111059,0.0001374,2]
[329971924,1718884243192,-150.0,0.00013761,2]
[329971925,1718884243203,-150.51247008,0.00013761,2]
[329971926,1718884243218,-150.0,0.00013762,2]
[329971927,1718884243233,-150.0,0.00013768,2]
[329971928,1718884243244,-150.0,0.00013768,2]
[329971929,1718884243255,-150.0,0.0001377,2]
[329971930,1718884243266,-150.0,0.0001377,2]
[329971931,1718884243276,-1075.38446882,0.00013771,2]
[329971932,1718884243287,-300.0,0.00013778,2]
[329971933,1718884243298,-150.0,0.00013779,2]
[329971936,1718884243309,-150.0,0.00013781,2]
[329971938,1718884243320,-150.0,0.00013782,2]
[329971940,1718884243330,-150.0,0.00013782,2]
[329971942,1718884243341,-150.0,0.00013784,2]
[329971944,1718884243351,-150.0,0.00013787,2]
[329971946,1718884243362,-150.0,0.00013787,2]
[329971948,1718884243372,-669.8784138,0.0001379,2]
[329971949,1718884243383,-669.87841374,0.0001379,2]